fUSD/lending_fUSD_20240921
["ID","MTS","AMOUNT","RATE_DAILY","PERIOD"]
[338731591,1726901456497,-195.4,0.00012999,2]
[338731592,1726901456511,-500.0,0.00012999,2]
[338731593,1726901456524,-500.0,0.00012999,2]
[338731594,1726901456537,-413.04,0.00012999,2]
[338731595,1726901456550,-500.0,0.00012999,2]
[338731596,1726901456563,-500.0,0.00012999,2]
[338731597,1726901456577,-500.0,0.00012999,2]
[338731598,1726901456590,-500.0,0.00012999,2]
[338731599,1726901456603,-500.0,0.00012999,2]
[338731600,1726901456615,-180.08,0.00012999,2]
[338731601,1726901456628,-500.0,0.00012999,2]
[338731602,1726901456641,-477.64,0.00012999,2]
[338731603,1726901456653,-500.0,0.00012999,2]
[338731604,1726901456666,-500.0,0.00012999,2]
[338731605,1726901456679,-500.0,0.00012999,2]
[338731606,1726901456691,-500.0,0.00012999,2]
[338731607,1726901456704,-500.0,0.00012999,2]
[338731608,1726901456717,-575.46,0.00012999,2]
[338731609,1726901456729,-500.0,0.00012999,2]
[338731610,1726901456743,-554.6,0.00012999,2]
[338731611,1726901456758,-539.51008841,0.00012999,2]
[338731612,1726901456771,-500.0,0.00012999,2]
[338731613,1726901456785,-500.0,0.00012999,2]
[338731614,1726901456801,-180.82,0.00012999,2]
[338731615,1726901456814,-321.28,0.00012999,2]
[338731616,1726901456828,-500.0,0.00012999,2]
[338731617,1726901456844,-500.0,0.00012999,2]
[338731618,1726901456859,-166.82,0.00012999,2]
[338731619,1726901456874,-325.74,0.00012999,2]
[338731620,1726901456888,-500.0,0.00012999,2]
[338731621,1726901456901,-500.0,0.00012999,2]
[338731622,1726901456916,-500.0,0.00012999,2]
[338731623,1726901456929,-500.0,0.00012999,2]
[338731624,1726901456943,-291.52,0.00012999,2]
[338731625,1726901456956,-500.0,0.00012999,2]
[338731626,1726901456970,-500.0,0.00012999,2]
[338731627,1726901456982,-545.17,0.00012999,2]
[338731628,1726901456994,-500.0,0.00012999,2]
[338731629,1726901457007,-169.58,0.00012999,2]
[338731630,1726901457021,-272.82841371,0.00012999,2]
[338731631,1726901457034,-500.0,0.00012999,2]
[338731632,1726901457047,-527.58,0.00012999,2]
[338731633,1726901457060,-500.0,0.00012999,2]
[338731634,1726901457072,-500.0,0.00012999,2]
[338731635,1726901457084,-500.0,0.00012999,2]
[338731636,1726901457096,-500.0,0.00012999,2]
[338731637,1726901457108,-500.0,0.00012999,2]
[338731638,1726901457121,-221.24,0.00012999,2]
[338731639,1726901457133,-500.0,0.00012999,2]
[338731640,1726901457145,-240.08,0.00012999,2]
[338731641,1726901457157,-500.0,0.00012999,2]
[338731642,1726901457169,-428.19,0.00012999,2]
[338731643,1726901457181,-500.0,0.00012999,2]
[338731644,1726901457193,-553.05,0.00012999,2]
[338731645,1726901457206,-500.0,0.00012999,2]
[338731646,1726901457219,-485.39,0.00012999,2]
[338731647,1726901457231,-198.28,0.00012999,2]
[338731648,1726901457244,-500.0,0.00012999,2]
[338731649,1726901457256,-500.0,0.00012999,2]
[338731650,1726901457270,-229.75,0.00012999,2]
[338731651,1726901457282,-500.0,0.00012999,2]
[338731652,1726901457294,-190.010001,0.00012999,2]
[338731653,1726901457306,-500.0,0.00012999,2]
[338731654,1726901457319,-500.0,0.00012999,2]
[338731655,1726901457331,-500.0,0.00012999,2]
[338731656,1726901457343,-500.0,0.00012999,2]
[338731657,1726901457354,-492.32,0.00012999,2]
[338731658,1726901457367,-500.0,0.00012999,2]
[338731659,1726901457379,-315.22,0.00012999,2]
[338731660,1726901457391,-500.0,0.00012999,2]
[338731661,1726901457403,-500.0,0.00012999,2]
[338731662,1726901457414,-461.5,0.00012999,2]
[338731663,1726901457426,-500.0,0.00012999,2]
[338731664,1726901457438,-500.0,0.00012999,2]
[338731665,1726901457449,-500.0,0.00012999,2]
[338731666,1726901457461,-500.0,0.00012999,2]
[338731667,1726901457472,-437.97,0.00012999,2]
[338731668,1726901457484,-500.0,0.00012999,2]
[338731669,1726901457496,-364.33353014,0.00012999,2]
[338731670,1726901457508,-500.0,0.00012999,2]
[338731671,1726901457530,-557.31,0.00012999,2]
[338731672,1726901457542,-500.0,0.00012999,2]
[338731673,1726901457554,-500.0,0.00012999,2]
[338731674,1726901457567,-531.72,0.00012999,2]
[338731675,1726901457578,-500.0,0.00012999,2]
[338731676,1726901457591,-528.59,0.00012999,2]
[338731677,1726901457603,-519.1,0.00012999,2]
[338731678,1726901457615,-500.0,0.00012999,2]
[338731679,1726901457628,-638.27,0.00012999,2]
[338731680,1726901457640,-500.0,0.00012999,2]
[338731681,1726901457652,-500.0,0.00012999,2]
[338731682,1726901457664,-500.0,0.00012999,2]
[338731683,1726901457676,-263.14,0.00012999,2]
[338731684,1726901457688,-500.0,0.00012999,2]
[338731685,1726901457701,-469.87,0.00012999,2]
[338731686,1726901457714,-617.17,0.00012999,2]
[338731687,1726901457726,-500.0,0.00012999,2]
[338731688,1726901457739,-500.0,0.00012999,2]
[338731689,1726901457752,-211.45,0.00012999,2]
[338731690,1726901457766,-500.0,0.00012999,2]
[338731691,1726901457778,-500.0,0.00012999,2]
[338731692,1726901457790,-302.04,0.00012999,2]
[338731693,1726901457803,-500.0,0.00012999,2]
[338731694,1726901457818,-500.0,0.00012999,2]
[338731695,1726901457830,-500.0,0.00012999,2]
[338731696,1726901457843,-489.35,0.00012999,2]
[338731697,1726901457855,-500.0,0.00012999,2]
[338731698,1726901457867,-500.0,0.00012999,2]
[338731699,1726901457880,-271.77,0.00012999,2]
[338731700,1726901457892,-500.0,0.00012999,2]
[338731701,1726901457905,-500.0,0.00012999,2]
[338731702,1726901457916,-519.88,0.00012999,2]
[338731703,1726901457929,-500.0,0.00012999,2]
[338731704,1726901457941,-486.13,0.00012999,2]
[338731705,1726901457953,-572.8,0.00012999,2]
[338731706,1726901457965,-500.0,0.00012999,2]
[338731707,1726901457978,-500.0,0.00012999,2]
[338731708,1726901457990,-543.59,0.00012999,2]
[338731709,1726901458001,-500.0,0.00012999,2]
[338731710,1726901458013,-500.0,0.00012999,2]
[338731711,1726901458025,-472.74,0.00012999,2]
[338731712,1726901458037,-500.0,0.00012999,2]
[338731713,1726901458050,-500.0,0.00012999,2]
[338731714,1726901458063,-500.0,0.00012999,2]
[338731715,1726901458075,-500.0,0.00012999,2]
[338731716,1726901458087,-231.22,0.00012999,2]
[338731717,1726901458099,-259.02999456,0.00012999,2]
[338731718,1726901458110,-500.0,0.00012999,2]
[338731719,1726901458122,-615.04,0.00012999,2]
[338731720,1726901458135,-500.0,0.00012999,2]
[338731721,1726901458147,-500.0,0.00012999,2]
[338731722,1726901458159,-500.0,0.00012999,2]
[338731723,1726901458172,-500.0,0.00012999,2]
[338731724,1726901458185,-500.0,0.00012999,2]
[338731725,1726901458198,-179.58,0.00012999,2]
[338731726,1726901458211,-500.0,0.00012999,2]
[338731727,1726901458225,-291.75,0.00012999,2]
[338731728,1726901458237,-585.57,0.00012999,2]
[338731729,1726901458249,-399.11507661,0.00012999,2]
[338731730,1726901458262,-569.29,0.00012999,2]
[338731731,1726901458951,-283.19,0.00012999,2]
[338731732,1726901458973,-384.65,0.00012999,2]
[338731733,1726901459003,-357.43,0.00012999,2]
[338731734,1726901459025,-500.0,0.00012999,2]
[338731735,1726901459041,-279.46,0.00012999,2]
[338731736,1726901459051,-500.0,0.00012999,2]
[338731737,1726901459060,-500.0,0.00012999,2]
[338731738,1726901459071,-335.33,0.00012999,2]
[338731739,1726901459081,-200.74,0.00012999,2]
[338731740,1726901459090,-500.0,0.00012999,2]
[338731741,1726901459099,-256.30064752,0.00012999,2]
[338731742,1726901459109,-234.12,0.00012999,2]
[338731743,1726901459119,-168.75,0.00012999,2]
[338731744,1726901459128,-179.75,0.00012999,2]
[338731745,1726901459138,-576.72,0.00012999,2]
[338731746,1726901459147,-215.64,0.00012999,2]
[338731747,1726901459156,-432.04,0.00012999,2]
[338731748,1726901459166,-172.15,0.00012999,2]
[338731749,1726901459175,-231.8,0.00012999,2]
[338731750,1726901459185,-500.0,0.00012999,2]
[338731751,1726901459195,-500.0,0.00012999,2]
[338731752,1726901459204,-500.0,0.00012999,2]
[338731753,1726901459214,-500.0,0.00012999,2]
[338731754,1726901459224,-500.0,0.00012999,2]
[338731755,1726901459233,-500.0,0.00012999,2]
[338731756,1726901459243,-500.0,0.00012999,2]
[338731757,1726901459252,-500.0,0.00012999,2]
[338731758,1726901459263,-500.0,0.00012999,2]
[338731759,1726901459273,-629.35,0.00012999,2]
[338731760,1726901459283,-629.35,0.00012999,2]
[338731761,1726901459292,-629.35,0.00012999,2]
[338731762,1726901459303,-629.35,0.00012999,2]
[338731763,1726901459313,-629.35,0.00012999,2]
[338731764,1726901459324,-629.35,0.00012999,2]
[338731765,1726901459333,-629.35,0.00012999,2]
[338731766,1726901459343,-629.35,0.00012999,2]
[338731767,1726901459353,-629.35,0.00012999,2]
[338731768,1726901459363,-629.35,0.00012999,2]
[338731769,1726901459373,-629.35,0.00012999,2]
[338731770,1726901459383,-629.35,0.00012999,2]
[338731771,1726901459392,-629.35,0.00012999,2]
[338731772,1726901459402,-629.35,0.00012999,2]
[338731773,1726901459411,-629.35,0.00012999,2]
[338731774,1726901459422,-629.35,0.00012999,2]
[338731775,1726901459431,-629.35,0.00012999,2]
[338731776,1726901459442,-629.35,0.00012999,2]
[338731777,1726901459453,-629.35,0.00012999,2]
[338731778,1726901459463,-629.35,0.00012999,2]
[338731779,1726901459473,-629.35,0.00012999,2]
[338731780,1726901459482,-629.35,0.00012999,2]
[338731781,1726901459493,-629.58402821,0.00012999,2]
[338731782,1726901459503,-500.0,0.00012999,2]
[338731783,1726901459515,-500.0,0.00012999,2]
[338731784,1726901459524,-309.33,0.00012999,2]
[338731785,1726901459534,-500.0,0.00012999,2]
[338731786,1726901459543,-284.38,0.00012999,2]
[338731787,1726901459552,-315.54,0.00012999,2]
[338731788,1726901459563,-310.54,0.00012999,2]
[338731789,1726901459573,-150.0,0.00012999,2]
[338731790,1726901459585,-150.0,0.00012999,2]
[338731791,1726901459595,-150.0,0.00012999,2]
[338731792,1726901459605,-150.0,0.00012999,2]
[338731793,1726901459616,-500.0,0.00012999,2]
[338731794,1726901459627,-150.0,0.00012999,2]
[338731795,1726901459638,-150.0,0.00012999,2]
[338731796,1726901459649,-180.05945752,0.00012999,2]
[338731797,1726901459658,-642.01,0.00012999,2]
[338731798,1726901459670,-500.0,0.00012999,2]
[338731799,1726901459680,-323.09,0.00012999,2]
[338731800,1726901459691,-500.0,0.00012999,2]
[338731801,1726901459702,-500.0,0.00012999,2]
[338731802,1726901459711,-500.0,0.00012999,2]
[338731803,1726901459722,-500.0,0.00012999,2]
[338731804,1726901459731,-194.2,0.00012999,2]
[338731805,1726901459741,-500.0,0.00012999,2]
[338731806,1726901459751,-500.0,0.00012999,2]
[338731807,1726901459761,-500.0,0.00012999,2]
[338731808,1726901459771,-500.0,0.00012999,2]
[338731809,1726901459780,-428.47,0.00012999,2]
[338731810,1726901459791,-429.94,0.00013,2]
[338731811,1726901459801,-608.288349,0.00013,2]
[338731812,1726901459811,-1010.06,0.00013,2]
[338731813,1726901459820,-753.25,0.00013096,2]
[338731814,1726901459830,-1382.84114458,0.00013211,2]
[338731815,1726901459839,-429.95,0.0001337,2]
[338731816,1726901459848,-349.29,0.00013412,2]
[338731817,1726901459857,-1382.84114458,0.00013423,2]
[338731818,1726901459866,-410.58278229,0.0001343,2]
[338731819,1726901459876,-1000.0,0.00013471,2]
[338731820,1726901459885,-1382.84114458,0.00013635,2]
[338731821,1726901459895,-700.0,0.00013698,2]
[338731822,1726901459904,-700.0,0.00013698,2]
[338731823,1726901459914,-276.09516801,0.00013698,2]
[338731824,1726901459924,-1000.0,0.00013698,2]
[338731825,1726901459934,-1000.0,0.00013698,2]
[338731826,1726901459943,-1000.0,0.00013698,2]
[338731827,1726901459952,-500.0,0.00013698,2]
[338731828,1726901459962,-200.0,0.00013699,2]
[338731829,1726901459972,-2751.0,0.00013699,2]
[338731830,1726901459982,-150.0,0.00013699,2]
[338731831,1726901459992,-2967.996,0.000137,2]
[338731832,1726901460002,-164.74257645,0.00013741,2]
[338731833,1726901460011,-500.0,0.00013797,2]
[338731834,1726901460022,-219.67,0.00013797,2]
[338731835,1726901460031,-238.24,0.00013797,2]
[338731836,1726901460041,-214.07,0.00013797,2]
[338731837,1726901460051,-500.0,0.00013798,2]
[338731838,1726901460061,-500.0,0.00013798,2]
[338731839,1726901460071,-500.0,0.00013798,2]
[338731840,1726901460081,-500.0,0.00013798,2]
[338731841,1726901460091,-500.0,0.00013798,2]
[338731842,1726901460103,-500.0,0.00013798,2]
[338731843,1726901460112,-500.0,0.00013798,2]
[338731844,1726901460124,-500.0,0.00013798,2]
[338731845,1726901460135,-500.0,0.00013798,2]
[338731846,1726901460144,-500.0,0.00013798,2]
[338731847,1726901460155,-500.0,0.00013798,2]
[338731848,1726901460165,-500.0,0.00013798,2]
[338731849,1726901460175,-500.0,0.00013798,2]
[338731850,1726901460184,-500.0,0.00013798,2]
[338731851,1726901460194,-500.0,0.00013798,2]
[338731852,1726901460203,-500.0,0.00013798,2]
[338731853,1726901460214,-500.0,0.00013798,2]
[338731854,1726901460223,-500.0,0.00013798,2]
[338731855,1726901460233,-500.0,0.00013798,2]
[338731856,1726901460242,-500.0,0.00013798,2]
[338731857,1726901460252,-500.0,0.00013798,2]
[338731858,1726901460262,-500.0,0.00013798,2]
[338731859,1726901460274,-500.0,0.00013798,2]
[338731860,1726901460283,-500.0,0.00013798,2]
[338731861,1726901460293,-500.0,0.00013798,2]
[338731862,1726901460302,-500.0,0.00013798,2]
[338731863,1726901460312,-500.0,0.00013798,2]
[338731864,1726901460322,-500.0,0.00013798,2]
[338731865,1726901460332,-378.42414748,0.00013798,2]
[338731866,1726901460342,-500.0,0.00013798,2]
[338731867,1726901460351,-500.0,0.00013798,2]
[338731868,1726901460362,-500.0,0.00013798,2]
[338731869,1726901460372,-500.0,0.00013798,2]
[338731870,1726901460381,-500.0,0.00013798,2]
[338731871,1726901460391,-500.0,0.00013798,2]
[338731872,1726901460401,-500.0,0.00013798,2]
[338731873,1726901460411,-610.09,0.00013798,2]
[338731874,1726901460422,-500.0,0.00013798,2]
[338731875,1726901460433,-300.0,0.00013798,2]
[338731876,1726901460443,-531.73,0.00013798,2]
[338731877,1726901460455,-352.25,0.00013798,2]
[338731878,1726901460465,-359.51,0.00013798,2]
[338731879,1726901460476,-500.0,0.00013798,2]
[338731880,1726901460486,-500.0,0.00013798,2]
[338731881,1726901460495,-500.0,0.00013798,2]
[338731882,1726901460504,-500.0,0.00013798,2]
[338731883,1726901460516,-386.89,0.00013798,2]
[338731884,1726901460525,-500.0,0.00013798,2]
[338731885,1726901460535,-614.45,0.00013798,2]
[338731886,1726901460544,-500.0,0.00013798,2]
[338731887,1726901460553,-500.0,0.00013798,2]
[338731888,1726901460563,-500.0,0.00013798,2]
[338731889,1726901460572,-500.0,0.00013798,2]
[338731890,1726901460581,-500.0,0.00013798,2]
[338731891,1726901460590,-461.57,0.00013799,2]
[338731892,1726901460600,-217.26,0.00013799,2]
[338731893,1726901460609,-1873.29,0.00013799,2]
[338731894,1726901460618,-1000.0,0.00013799,2]
[338731895,1726901460628,-179.61923689,0.00013799,2]
[338731896,1726901460636,-416.86,0.00013799,2]
[338731897,1726901460646,-500.0,0.00013799,2]
[338731898,1726901460655,-500.0,0.00013799,2]
[338731899,1726901460664,-500.0,0.00013799,2]
[338731900,1726901460674,-230.06,0.00013799,2]
[338731901,1726901460683,-500.0,0.00013799,2]
[338731902,1726901460692,-490.19,0.00013799,2]
[338731903,1726901460702,-500.0,0.00013799,2]
[338731904,1726901460711,-500.0,0.00013799,2]
[338731905,1726901460720,-500.0,0.00013799,2]
[338731906,1726901460730,-564.99,0.00013799,2]
[338731907,1726901460740,-500.0,0.00013799,2]
[338731908,1726901460749,-427.01,0.00013799,2]
[338731909,1726901460758,-157.68,0.00013799,2]
[338731910,1726901460770,-500.0,0.00013799,2]
[338731911,1726901460779,-273.08,0.00013799,2]
[338731912,1726901460788,-390.32,0.00013799,2]
[338731913,1726901460798,-151.0,0.000138,2]
[338731914,1726901460808,-151.0,0.000138,2]
[338731915,1726901460817,-151.0,0.000138,2]
[338731916,1726901460828,-325314.043956,0.000138,2]
[338731917,1726901460838,-1382.84114458,0.00013846,2]
[338731918,1726901460848,-150.0,0.00013878,2]
[338731919,1726901460857,-500.0,0.00013895,2]
[338731920,1726901460868,-562.54,0.00013898,2]
[338731921,1726901460877,-241.55,0.00013899,2]
[338731922,1726901460886,-494.54,0.00013899,2]
[338731923,1726901460896,-500.0,0.00013899,2]
[338731924,1726901460910,-503.73,0.00013899,2]
[338731925,1726901460921,-500.0,0.00013899,2]
[338731926,1726901460930,-500.0,0.00013899,2]
[338731927,1726901460940,-500.0,0.00013899,2]
[338731928,1726901460951,-156.47,0.00013899,2]
[338731929,1726901460961,-500.0,0.00013899,2]
[338731930,1726901460971,-500.0,0.00013899,2]
[338731931,1726901460980,-500.0,0.00013899,2]
[338731932,1726901460990,-155.08,0.00013899,2]
[338731933,1726901460999,-500.0,0.00013899,2]
[338731934,1726901461008,-500.0,0.00013899,2]
[338731935,1726901461018,-500.0,0.00013899,2]
[338731936,1726901461027,-500.0,0.00013899,2]
[338731937,1726901461037,-197.53,0.00013899,2]
[338731938,1726901461046,-500.0,0.00013899,2]
[338731939,1726901461055,-500.0,0.00013899,2]
[338731940,1726901461064,-265.06,0.00013899,2]
[338731941,1726901461074,-500.0,0.00013899,2]
[338731942,1726901461083,-306.23,0.00013899,2]
[338731943,1726901461093,-500.0,0.00013899,2]
[338731944,1726901461102,-291.58,0.00013899,2]
[338731945,1726901461111,-221.59,0.00013899,2]
[338731946,1726901461120,-500.0,0.00013899,2]
[338731947,1726901461130,-368.37,0.00013899,2]
[338731948,1726901461139,-512.58,0.00013899,2]
[338731949,1726901461149,-500.0,0.00013899,2]
[338731950,1726901461158,-500.0,0.00013899,2]
[338731951,1726901461167,-500.0,0.00013899,2]
[338731952,1726901461178,-226.39,0.00013899,2]
[338731953,1726901461187,-500.0,0.00013899,2]
[338731954,1726901461196,-500.0,0.00013899,2]
[338731955,1726901461205,-500.0,0.00013899,2]
[338731956,1726901461215,-444.0,0.00013899,2]
[338731957,1726901461225,-500.0,0.00013899,2]
[338731958,1726901461234,-500.0,0.00013899,2]
[338731959,1726901461244,-500.0,0.00013899,2]
[338731960,1726901461253,-500.0,0.00013899,2]
[338731961,1726901461264,-500.0,0.00013899,2]
[338731962,1726901461274,-500.0,0.00013899,2]
[338731963,1726901461283,-500.0,0.00013899,2]
[338731964,1726901461292,-500.0,0.00013899,2]
[338731965,1726901461301,-500.0,0.00013899,2]
[338731966,1726901461310,-421.16,0.00013899,2]
[338731967,1726901461319,-418.72,0.00013899,2]
[338731968,1726901461329,-500.0,0.00013899,2]
[338731969,1726901461338,-157.86,0.00013899,2]
[338731970,1726901461348,-603.52,0.00013899,2]
[338731971,1726901461358,-500.0,0.00013899,2]
[338731972,1726901461368,-393.04,0.00013899,2]
[338731973,1726901461377,-500.0,0.00013899,2]
[338731974,1726901461387,-500.0,0.00013899,2]
[338731975,1726901461397,-500.0,0.00013899,2]
[338731976,1726901461406,-256.8,0.00013899,2]
[338731977,1726901461416,-218.1,0.00013899,2]
[338731978,1726901461425,-219.96,0.00013899,2]
[338731979,1726901461434,-586.08,0.00013899,2]
[338731980,1726901461443,-369.68,0.00013899,2]
[338731981,1726901461452,-500.0,0.00013899,2]
[338731982,1726901461462,-500.0,0.00013899,2]
[338731983,1726901461472,-500.0,0.00013899,2]
[338731984,1726901461483,-500.0,0.00013899,2]
[338731985,1726901461492,-264.08,0.00013899,2]
[338731986,1726901461502,-500.0,0.00013899,2]
[338731987,1726901461511,-500.0,0.00013899,2]
[338731988,1726901461522,-559.52,0.00013899,2]
[338731989,1726901461531,-500.0,0.00013899,2]
[338731990,1726901461541,-500.0,0.00013899,2]
[338731991,1726901461551,-500.0,0.00013899,2]
[338731992,1726901461560,-500.0,0.00013899,2]
[338731993,1726901461569,-500.0,0.00013899,2]
[338731994,1726901461579,-500.0,0.00013899,2]
[338731995,1726901461589,-500.0,0.00013899,2]
[338731996,1726901461598,-500.0,0.00013899,2]
[338731997,1726901461607,-163.55831001,0.00013899,2]
[338731998,1726901461617,-500.0,0.00013899,2]
[338731999,1726901461627,-175.64,0.00013899,2]
[338732000,1726901461637,-239.61,0.00013899,2]
[338732001,1726901461646,-419.14,0.00013899,2]
[338732002,1726901461656,-500.0,0.00013899,2]
[338732003,1726901461665,-500.0,0.00013899,2]
[338732004,1726901461675,-430.16,0.00013899,2]
[338732005,1726901461685,-500.0,0.00013899,2]
[338732006,1726901461694,-500.0,0.00013899,2]
[338732007,1726901461704,-500.0,0.00013899,2]
[338732008,1726901461714,-150.0,0.00013899,2]
[338732009,1726901461723,-461.11,0.00013899,2]
[338732010,1726901461733,-500.0,0.00013899,2]
[338732011,1726901461743,-411.95,0.00013899,2]
[338732012,1726901461753,-500.0,0.00013899,2]
[338732013,1726901461763,-500.0,0.00013899,2]
[338732014,1726901461773,-500.0,0.00013899,2]
[338732015,1726901461782,-500.0,0.00013899,2]
[338732016,1726901461792,-378.87,0.00013899,2]
[338732017,1726901461802,-151.0,0.000139,2]
[338732018,1726901461812,-151.0,0.000139,2]
[338732019,1726901461822,-151.0,0.000139,2]
[338732020,1726901461832,-2453.29491962,0.000139,2]
[338732021,1726901461851,-731.46268124,0.000139,2]
[338732022,1726901461864,-576.99,0.000139,2]
[338732023,1726901461876,-3098.32968398,0.000139,2]
[338732024,1726901461888,-17763.29560768,0.000139,2]
[338732025,1726901461900,-59687.47526315,0.000139,2]
[338732026,1726901461912,-24929.11631104,0.000139,2]
[338732027,1726901461928,-1092.27862809,0.000139,2]
[338732028,1726901461940,-5380.48614854,0.000139,2]
[338732029,1726901461952,-626.255,0.000139,2]
[338732030,1726901461963,-63394.02948113,0.000139,2]
[338732031,1726901461975,-7180.06767896,0.000139,2]
[338732032,1726901461987,-29574.57782437,0.000139,2]
[338732033,1726901462663,-306097.2500602,0.000139,2]
[338732034,1726901462672,-420.0,0.00013909,2]
[338732035,1726901462682,-456.582,0.00013944,2]
[338732036,1726901462691,-300.9,0.00013973,2]
[338732037,1726901462700,-1873.29,0.00013989,2]
[338732038,1726901462710,-1000.0,0.00013989,2]
[338732039,1726901462719,-500.0,0.00013989,2]
[338732040,1726901462728,-35874.00058705,0.00014,2]
[338732041,1726901462738,-848.0,0.00014,2]
[338732042,1726901462748,-903.0,0.00014,2]
[338732043,1726901462758,-359.0,0.00014,2]
[338732044,1726901462769,-615.0,0.00014033,2]
[338732045,1726901462779,-1382.84114458,0.00014058,2]
[338732046,1726901462789,-150.0,0.00014059,2]
[338732047,1726901462799,-165.24,0.0001408,2]
[338732048,1726901462809,-392.69,0.00014098,2]
[338732049,1726901462819,-500.0,0.00014099,2]
[338732050,1726901462837,-360.39,0.00014099,2]
[338732051,1726901462856,-500.0,0.00014099,2]
[338732052,1726901462870,-500.0,0.00014099,2]
[338732053,1726901462883,-500.0,0.00014099,2]
[338732054,1726901462894,-478.64,0.00014099,2]
[338732055,1726901462904,-258.56,0.00014099,2]
[338732056,1726901462914,-472.65,0.00014099,2]
[338732057,1726901462925,-199.78,0.00014099,2]
[338732058,1726901462934,-310.75,0.00014099,2]
[338732059,1726901462944,-231.77,0.00014099,2]
[338732060,1726901462955,-237.47,0.00014099,2]
[338732061,1726901462965,-375.32,0.00014099,2]
[338732062,1726901462974,-176.81501871,0.000141,2]
[338732063,1726901462984,-162.78018815,0.000141,2]
[338732064,1726901462994,-150.0,0.00014108,2]
[338732065,1726901463003,-150.0,0.00014137,2]
[338732066,1726901463013,-150.0,0.00014138,2]
[338732067,1726901463024,-152.0,0.00014158,3]
[338732068,1726901463033,-150.0,0.00014161,2]
[338732069,1726901463043,-600.0,0.00014178,2]
[338732070,1726901463054,-900.0,0.00014178,2]
[338732071,1726901463064,-500.0,0.00014185,2]
[338732072,1726901463074,-500.0,0.00014186,2]
[338732073,1726901463084,-2000.0,0.00014186,2]
[338732074,1726901463094,-500.0,0.00014186,2]
[338732075,1726901463104,-500.0,0.00014186,2]
[338732076,1726901463114,-500.0,0.00014186,2]
[338732077,1726901463123,-153.75728898,0.00014188,2]
[338732078,1726901463133,-167.69038639,0.00014188,2]
[338732079,1726901463142,-3452.21284604,0.00014188,2]
[338732080,1726901463152,-245.23455293,0.00014191,2]
[338732081,1726901463162,-500.0,0.00014198,2]
[338732082,1726901463172,-620.19,0.00014198,2]
[338732083,1726901463183,-500.0,0.00014198,2]
[338732084,1726901463193,-500.0,0.00014198,2]
[338732085,1726901463203,-500.0,0.00014199,2]
[338732086,1726901463213,-500.0,0.00014199,2]
[338732087,1726901463224,-500.0,0.00014199,2]
[338732088,1726901463233,-637.47,0.00014199,2]
[338732089,1726901463243,-500.0,0.00014199,2]
[338732090,1726901463253,-500.0,0.00014199,2]